[Event "Titled Tuesday Blitz May 16 Early 2023"]
[White "Matlakov, Maxim"]
[Black "Lenaerts, Lennert"]
[WhiteFideId "4168003"]
[BlackFideId "211435"]
[WhiteElo "2666"]
[BlackElo "2334"]
[Result "0-1"]
[Round "04"]
[TimeControl "180+2"]
[Date "2023.05.16"]
[WhiteClock "0:00:00"]
[BlackClock "0:00:13"]

1. d4 {[%clk 0:02:59]}  d5 {[%clk 0:02:58]} 2. Nf3 {[%clk 0:02:59]}  Nf6 {[%clk 0:02:57]} 3. e3 {[%clk 0:02:59]}  Bf5 {[%clk 0:02:56]} 4. c4 {[%clk 0:02:59]}  c6 {[%clk 0:02:56]} 5. Nc3 {[%clk 0:02:59]}  e6 {[%clk 0:02:57]} 6. Nh4 {[%clk 0:02:57]}  Be4 {[%clk 0:02:57]} 7. f3 {[%clk 0:02:56]}  Bg6 {[%clk 0:02:58]} 8. Qb3 {[%clk 0:02:55]}  Qc7 {[%clk 0:02:58]} 9. Bd2 {[%clk 0:02:53]}  Be7 {[%clk 0:02:58]} 10. g3 {[%clk 0:02:52]}  a6 {[%clk 0:02:48]} 11. Rc1 {[%clk 0:02:51]}  dxc4 {[%clk 0:02:48]} 12. Bxc4 {[%clk 0:02:50]}  b5 {[%clk 0:02:48]} 13. Be2 {[%clk 0:02:48]}  Nbd7 {[%clk 0:02:46]} 14. O-O {[%clk 0:02:46]}  c5 {[%clk 0:02:44]} 15. Nxg6 {[%clk 0:02:38]}  hxg6 {[%clk 0:02:44]} 16. Ne4 {[%clk 0:02:39]}  Nxe4 {[%clk 0:02:31]} 17. fxe4 {[%clk 0:02:40]}  O-O {[%clk 0:02:31]} 18. a4 {[%clk 0:02:26]}  Rab8 {[%clk 0:02:16]} 19. axb5 {[%clk 0:02:26]}  axb5 {[%clk 0:02:17]} 20. Rfd1 {[%clk 0:02:18]}  Qb6 {[%clk 0:02:08]} 21. Be1 {[%clk 0:02:16]}  Rfd8 {[%clk 0:01:57]} 22. Bf2 {[%clk 0:02:15]}  Nf6 {[%clk 0:01:42]} 23. Bf3 {[%clk 0:02:15]}  c4 {[%clk 0:01:36]} 24. Qc2 {[%clk 0:02:14]}  Rbc8 {[%clk 0:01:33]} 25. Qe2 {[%clk 0:02:10]}  e5 {[%clk 0:01:20]} 26. Kg2 {[%clk 0:02:07]}  Re8 {[%clk 0:01:14]} 27. dxe5 {[%clk 0:02:05]}  Nh7 {[%clk 0:01:14]} 28. Rd5 {[%clk 0:01:55]}  Ng5 {[%clk 0:01:03]} 29. h4 {[%clk 0:01:55]}  Nxf3 {[%clk 0:01:00]} 30. Qxf3 {[%clk 0:01:56]}  b4 {[%clk 0:01:00]} 31. h5 {[%clk 0:01:48]}  c3 {[%clk 0:00:56]} 32. bxc3 {[%clk 0:01:34]}  bxc3 {[%clk 0:00:57]} 33. Rd3 {[%clk 0:01:25]}  Bb4 {[%clk 0:00:51]} 34. Rd4 {[%clk 0:01:18]}  Ba3 {[%clk 0:00:37]} 35. Rc2 {[%clk 0:01:00]}  Bb2 {[%clk 0:00:37]} 36. Rd6 {[%clk 0:00:58]}  Qb3 {[%clk 0:00:35]} 37. hxg6 {[%clk 0:00:57]}  fxg6 {[%clk 0:00:34]} 38. Qd1 {[%clk 0:00:49]}  Rxe5 {[%clk 0:00:34]} 39. Rxg6 {[%clk 0:00:46]}  Rce8 {[%clk 0:00:25]} 40. Qg4 {[%clk 0:00:32]}  Qb7 {[%clk 0:00:23]} 41. Kh2 {[%clk 0:00:24]}  Rxe4 {[%clk 0:00:23]} 42. Qe2 {[%clk 0:00:21]}  Ra4 {[%clk 0:00:21]} 43. Rg5 {[%clk 0:00:16]}  Qe4 {[%clk 0:00:19]} 44. Qh5 {[%clk 0:00:10]}  Ra1 {[%clk 0:00:15]} 45. Rxg7+ {[%clk 0:00:02]}  Kxg7 {[%clk 0:00:16]} 46. Qg5+ {[%clk 0:00:00]}  Qg6 {[%clk 0:00:13]} 0-1


[Site "https://www.chess.com"]

[Event "Titled Tuesday Blitz May 16 Early 2023"]
[White "Soham Kamotra"]
[Black "Quesada Perez, Yuniesky"]
[WhiteFideId "46647490"]
[BlackFideId "3504409"]
[WhiteElo "2209"]
[BlackElo "2585"]
[Result "1-0"]
[Round "04"]
[TimeControl "180+2"]
[Date "2023.05.16"]
[WhiteClock "0:00:19"]
[BlackClock "0:00:00"]

1. d4 {[%clk 0:03:00]}  d5 {[%clk 0:02:59]} 2. Nf3 {[%clk 0:02:56]}  Nf6 {[%clk 0:02:59]} 3. e3 {[%clk 0:02:54]}  c5 {[%clk 0:02:55]} 4. Bd3 {[%clk 0:02:48]}  Nc6 {[%clk 0:02:54]} 5. c3 {[%clk 0:02:48]}  Bg4 {[%clk 0:02:54]} 6. Nbd2 {[%clk 0:02:39]}  e6 {[%clk 0:02:52]} 7. O-O {[%clk 0:02:33]}  a6 {[%clk 0:02:41]} 8. Qe2 {[%clk 0:02:31]}  Rc8 {[%clk 0:02:34]} 9. Re1 {[%clk 0:02:26]}  Qc7 {[%clk 0:02:22]} 10. h3 {[%clk 0:02:15]}  Bh5 {[%clk 0:02:22]} 11. b3 {[%clk 0:01:57]}  cxd4 {[%clk 0:02:22]} 12. exd4 {[%clk 0:01:53]}  Be7 {[%clk 0:02:19]} 13. Nf1 {[%clk 0:01:53]}  O-O {[%clk 0:02:08]} 14. Bd2 {[%clk 0:01:53]}  Bd6 {[%clk 0:02:04]} 15. a4 {[%clk 0:01:46]}  Rfe8 {[%clk 0:02:02]} 16. Bg5 {[%clk 0:01:37]}  Na5 {[%clk 0:01:46]} 17. b4 {[%clk 0:01:19]}  Nb3 {[%clk 0:01:19]} 18. Ra3 {[%clk 0:01:18]}  Qxc3 {[%clk 0:01:10]} 19. Bxf6 {[%clk 0:00:52]}  gxf6 {[%clk 0:01:09]} 20. g4 {[%clk 0:00:52]}  Bg6 {[%clk 0:00:55]} 21. Bxg6 {[%clk 0:00:46]}  hxg6 {[%clk 0:00:56]} 22. Qd1 {[%clk 0:00:38]}  Qc6 {[%clk 0:00:11]} 23. Qxb3 {[%clk 0:00:36]}  e5 {[%clk 0:00:11]} 24. dxe5 {[%clk 0:00:33]}  fxe5 {[%clk 0:00:12]} 25. Raa1 {[%clk 0:00:26]}  d4 {[%clk 0:00:12]} 26. Ng5 {[%clk 0:00:26]}  Qd7 {[%clk 0:00:09]} 27. Ng3 {[%clk 0:00:23]}  Rc3 {[%clk 0:00:08]} 28. Qd5 {[%clk 0:00:22]}  Qe7 {[%clk 0:00:04]} 29. N5e4 {[%clk 0:00:20]}  Bb8 {[%clk 0:00:03]} 30. Nxc3 {[%clk 0:00:19]}  dxc3 {[%clk 0:00:03]} 31. b5 {[%clk 0:00:19]}  Rd8 {[%clk 0:00:00]} 32. Qc4 {[%clk 0:00:19]} 1-0


[Site "https://www.chess.com"]

[Event "Titled Tuesday Blitz May 16 Early 2023"]
[White "Bortnyk, Mykola"]
[Black "Orlov, Georgi"]
[WhiteFideId "14120836"]
[BlackFideId "2011271"]
[WhiteElo "2582"]
[BlackElo "2609"]
[Result "0-1"]
[Round "04"]
[TimeControl "180+2"]
[Date "2023.05.16"]
[WhiteClock "0:00:00"]
[BlackClock "0:00:27"]

1. Nf3 {[%clk 0:03:00]}  Nf6 {[%clk 0:02:59]} 2. d4 {[%clk 0:03:00]}  e6 {[%clk 0:02:58]} 3. c4 {[%clk 0:03:00]}  Nc6 {[%clk 0:02:58]} 4. d5 {[%clk 0:02:56]}  exd5 {[%clk 0:02:57]} 5. cxd5 {[%clk 0:02:57]}  Bb4+ {[%clk 0:02:57]} 6. Nc3 {[%clk 0:02:48]}  Ne7 {[%clk 0:02:56]} 7. e4 {[%clk 0:02:45]}  Nxe4 {[%clk 0:02:56]} 8. Qd4 {[%clk 0:02:44]}  Bxc3+ {[%clk 0:02:56]} 9. bxc3 {[%clk 0:02:44]}  Nf6 {[%clk 0:02:57]} 10. c4 {[%clk 0:02:41]}  d6 {[%clk 0:02:52]} 11. Bb2 {[%clk 0:02:33]}  Nf5 {[%clk 0:02:50]} 12. Qd3 {[%clk 0:02:28]}  Qe7+ {[%clk 0:02:46]} 13. Be2 {[%clk 0:02:27]}  O-O {[%clk 0:02:39]} 14. O-O {[%clk 0:02:27]}  Ne4 {[%clk 0:02:34]} 15. Rfe1 {[%clk 0:02:24]}  Nc5 {[%clk 0:02:01]} 16. Qd2 {[%clk 0:02:19]}  f6 {[%clk 0:01:57]} 17. Bd1 {[%clk 0:02:08]}  Qf7 {[%clk 0:01:56]} 18. Bc2 {[%clk 0:02:09]}  Nh6 {[%clk 0:01:52]} 19. Nd4 {[%clk 0:02:07]}  Bd7 {[%clk 0:01:49]} 20. Re3 {[%clk 0:01:49]}  Rae8 {[%clk 0:01:38]} 21. Rg3 {[%clk 0:01:49]}  Kh8 {[%clk 0:01:34]} 22. Qf4 {[%clk 0:01:34]}  Re5 {[%clk 0:01:28]} 23. h4 {[%clk 0:01:23]}  Rfe8 {[%clk 0:01:24]} 24. Nf3 {[%clk 0:00:58]}  Re2 {[%clk 0:01:19]} 25. Rc1 {[%clk 0:00:57]}  Ne4 {[%clk 0:00:56]} 26. Bd3 {[%clk 0:00:38]}  Nxg3 {[%clk 0:00:54]} 27. Bc3 {[%clk 0:00:34]}  Nh5 {[%clk 0:00:49]} 28. Qd4 {[%clk 0:00:34]}  R2e7 {[%clk 0:00:46]} 29. Nh2 {[%clk 0:00:26]}  Bf5 {[%clk 0:00:39]} 30. Bf1 {[%clk 0:00:23]}  b6 {[%clk 0:00:37]} 31. Qd1 {[%clk 0:00:17]}  Nf4 {[%clk 0:00:36]} 32. Qf3 {[%clk 0:00:16]}  Ne2+ {[%clk 0:00:34]} 33. Bxe2 {[%clk 0:00:15]}  Rxe2 {[%clk 0:00:34]} 34. g4 {[%clk 0:00:16]}  Nxg4 {[%clk 0:00:30]} 35. Nxg4 {[%clk 0:00:12]}  Qg6 {[%clk 0:00:30]} 36. Kf1 {[%clk 0:00:02]}  Bxg4 {[%clk 0:00:30]} 37. Qg3 {[%clk 0:00:01]}  Qf5 {[%clk 0:00:29]} 38. Bd4 {[%clk 0:00:02]}  Bh3+ {[%clk 0:00:28]} 39. Kg1 {[%clk 0:00:02]}  R2e4 {[%clk 0:00:28]} 40. Kh2 {[%clk 0:00:01]}  Rxd4 {[%clk 0:00:27]} 41. Qxh3 {[%clk 0:00:00]}  Qxf2+ {[%clk 0:00:27]} 0-1


[Site "https://www.chess.com"]

[Event "Titled Tuesday Blitz May 16 Early 2023"]
[White "Keymer, Vincent"]
[Black "Agibileg, Uurtsaikh"]
[WhiteFideId "12940690"]
[BlackFideId "4901606"]
[WhiteElo "2669"]
[BlackElo "2353"]
[Result "1-0"]
[Round "04"]
[TimeControl "180+2"]
[Date "2023.05.16"]
[WhiteClock "0:00:39"]
[BlackClock "0:00:18"]

1. a3 {[%clk 0:03:00]}  b6 {[%clk 0:02:56]} 2. Nf3 {[%clk 0:02:59]}  Bb7 {[%clk 0:02:56]} 3. b4 {[%clk 0:03:00]}  Nf6 {[%clk 0:02:55]} 4. Bb2 {[%clk 0:02:59]}  e6 {[%clk 0:02:55]} 5. c4 {[%clk 0:03:00]}  a5 {[%clk 0:02:55]} 6. b5 {[%clk 0:02:59]}  d5 {[%clk 0:02:55]} 7. e3 {[%clk 0:02:59]}  Be7 {[%clk 0:02:54]} 8. cxd5 {[%clk 0:02:54]}  exd5 {[%clk 0:02:53]} 9. Nc3 {[%clk 0:02:51]}  O-O {[%clk 0:02:53]} 10. Be2 {[%clk 0:02:51]}  Nbd7 {[%clk 0:02:47]} 11. O-O {[%clk 0:02:50]}  Nc5 {[%clk 0:02:46]} 12. Rc1 {[%clk 0:02:39]}  Bd6 {[%clk 0:02:44]} 13. d3 {[%clk 0:02:32]}  Qe7 {[%clk 0:02:44]} 14. Re1 {[%clk 0:02:32]}  Kh8 {[%clk 0:02:43]} 15. Bf1 {[%clk 0:02:32]}  Rae8 {[%clk 0:02:32]} 16. Nd4 {[%clk 0:02:32]}  Qe5 {[%clk 0:02:29]} 17. g3 {[%clk 0:02:32]}  Qg5 {[%clk 0:02:23]} 18. Rc2 {[%clk 0:02:02]}  h5 {[%clk 0:02:21]} 19. Qf3 {[%clk 0:01:59]}  Bc8 {[%clk 0:02:17]} 20. h4 {[%clk 0:01:50]}  Qg6 {[%clk 0:02:17]} 21. Rd2 {[%clk 0:01:44]}  Re5 {[%clk 0:01:45]} 22. Qh1 {[%clk 0:01:30]}  Rfe8 {[%clk 0:01:40]} 23. Nc6 {[%clk 0:01:20]}  Rxe3 {[%clk 0:01:32]} 24. Rxe3 {[%clk 0:01:20]}  Rxe3 {[%clk 0:01:32]} 25. fxe3 {[%clk 0:01:20]}  Qxg3+ {[%clk 0:01:02]} 26. Qg2 {[%clk 0:01:20]}  Qxh4 {[%clk 0:01:03]} 27. Nxd5 {[%clk 0:01:05]}  Ng4 {[%clk 0:01:03]} 28. Nf4 {[%clk 0:01:01]}  Kh7 {[%clk 0:00:45]} 29. Qh3 {[%clk 0:00:51]}  Qxh3 {[%clk 0:00:31]} 30. Bxh3 {[%clk 0:00:47]}  Nxe3 {[%clk 0:00:32]} 31. Bxc8 {[%clk 0:00:46]}  Bxf4 {[%clk 0:00:32]} 32. Re2 {[%clk 0:00:39]}  Nxd3 {[%clk 0:00:18]} 33. Bd4 {[%clk 0:00:39]} 1-0


[Site "https://www.chess.com"]

[Event "Titled Tuesday Blitz May 16 Early 2023"]
[White "Chigaev, Maksim"]
[Black "Raahul V S"]
[WhiteFideId "4108116"]
[BlackFideId "25035525"]
[WhiteElo "2558"]
[BlackElo "2190"]
[Result "0-1"]
[Round "04"]
[TimeControl "180+2"]
[Date "2023.05.16"]
[WhiteClock "0:00:06"]
[BlackClock "0:00:33"]

1. Nf3 {[%clk 0:03:00]}  d5 {[%clk 0:02:57]} 2. c4 {[%clk 0:03:00]}  d4 {[%clk 0:02:56]} 3. b4 {[%clk 0:03:00]}  g6 {[%clk 0:02:46]} 4. Bb2 {[%clk 0:02:56]}  Bg7 {[%clk 0:02:47]} 5. g3 {[%clk 0:02:52]}  a5 {[%clk 0:02:46]} 6. b5 {[%clk 0:02:51]}  e5 {[%clk 0:02:46]} 7. d3 {[%clk 0:02:49]}  Ne7 {[%clk 0:02:45]} 8. Bg2 {[%clk 0:02:25]}  O-O {[%clk 0:02:43]} 9. O-O {[%clk 0:02:21]}  c5 {[%clk 0:02:43]} 10. bxc6 {[%clk 0:02:19]}  Nexc6 {[%clk 0:02:41]} 11. Na3 {[%clk 0:02:18]}  Na6 {[%clk 0:02:37]} 12. Nb5 {[%clk 0:02:17]}  Nc5 {[%clk 0:02:30]} 13. Nd2 {[%clk 0:02:15]}  Bd7 {[%clk 0:02:13]} 14. Rb1 {[%clk 0:01:57]}  f5 {[%clk 0:01:53]} 15. Nb3 {[%clk 0:01:51]}  Na4 {[%clk 0:01:49]} 16. Ba3 {[%clk 0:01:40]}  Nb4 {[%clk 0:01:48]} 17. Nc5 {[%clk 0:01:35]}  Nxc5 {[%clk 0:01:32]} 18. Rxb4 {[%clk 0:01:17]}  axb4 {[%clk 0:01:26]} 19. Bxb4 {[%clk 0:01:18]}  b6 {[%clk 0:01:15]} 20. Qc2 {[%clk 0:00:46]}  Bxb5 {[%clk 0:01:13]} 21. cxb5 {[%clk 0:00:44]}  Rc8 {[%clk 0:01:13]} 22. Bc6 {[%clk 0:00:42]}  Qd6 {[%clk 0:01:12]} 23. Qc4+ {[%clk 0:00:40]}  Kh8 {[%clk 0:01:11]} 24. Bxc5 {[%clk 0:00:37]}  bxc5 {[%clk 0:01:09]} 25. Bd5 {[%clk 0:00:35]}  Ra8 {[%clk 0:00:53]} 26. Bxa8 {[%clk 0:00:23]}  Rxa8 {[%clk 0:00:54]} 27. a4 {[%clk 0:00:23]}  e4 {[%clk 0:00:50]} 28. Rb1 {[%clk 0:00:22]}  Qb6 {[%clk 0:00:47]} 29. Qd5 {[%clk 0:00:18]}  Rxa4 {[%clk 0:00:43]} 30. Qc6 {[%clk 0:00:11]}  Qxc6 {[%clk 0:00:41]} 31. bxc6 {[%clk 0:00:12]}  Ra8 {[%clk 0:00:41]} 32. Rb5 {[%clk 0:00:09]}  Bf8 {[%clk 0:00:33]} 33. Rb7 {[%clk 0:00:06]}  Rc8 {[%clk 0:00:33]} 0-1


[Site "https://www.chess.com"]

[Event "Titled Tuesday Blitz May 16 Early 2023"]
[White "Mikhailovsky, Vladimir"]
[Black "Bodnaruk, Anastasia"]
[WhiteFideId "34105414"]
[BlackFideId "4181751"]
[WhiteElo "2271"]
[BlackElo "2304"]
[Result "1-0"]
[Round "04"]
[TimeControl "180+2"]
[Date "2023.05.16"]
[WhiteClock "0:00:21"]
[BlackClock "0:00:20"]

1. e4 {[%clk 0:03:00]}  c5 {[%clk 0:02:59]} 2. c3 {[%clk 0:02:57]}  Nf6 {[%clk 0:02:59]} 3. e5 {[%clk 0:02:58]}  Nd5 {[%clk 0:02:59]} 4. Nf3 {[%clk 0:02:58]}  Nc6 {[%clk 0:02:57]} 5. Bc4 {[%clk 0:02:59]}  Nb6 {[%clk 0:02:55]} 6. Bb3 {[%clk 0:02:59]}  c4 {[%clk 0:02:55]} 7. Bc2 {[%clk 0:03:00]}  d6 {[%clk 0:02:56]} 8. exd6 {[%clk 0:02:59]}  Qxd6 {[%clk 0:02:56]} 9. O-O {[%clk 0:03:00]}  g6 {[%clk 0:02:53]} 10. Na3 {[%clk 0:02:51]}  Bg7 {[%clk 0:02:50]} 11. b3 {[%clk 0:02:51]}  cxb3 {[%clk 0:02:47]} 12. axb3 {[%clk 0:02:51]}  e5 {[%clk 0:02:42]} 13. Nb5 {[%clk 0:02:27]}  Qd7 {[%clk 0:02:34]} 14. Ba3 {[%clk 0:02:27]}  Nb4 {[%clk 0:01:44]} 15. Nd6+ {[%clk 0:01:41]}  Qxd6 {[%clk 0:01:42]} 16. Bxb4 {[%clk 0:01:42]}  Qc7 {[%clk 0:01:35]} 17. Re1 {[%clk 0:01:30]}  Bg4 {[%clk 0:01:26]} 18. h3 {[%clk 0:01:14]}  Bxf3 {[%clk 0:01:26]} 19. Qxf3 {[%clk 0:01:14]}  f5 {[%clk 0:01:22]} 20. d4 {[%clk 0:01:01]}  e4 {[%clk 0:01:07]} 21. Bxe4 {[%clk 0:01:01]}  fxe4 {[%clk 0:01:04]} 22. Rxe4+ {[%clk 0:01:02]}  Kd8 {[%clk 0:01:04]} 23. Re7 {[%clk 0:00:55]}  Qxe7 {[%clk 0:01:02]} 24. Bxe7+ {[%clk 0:00:54]}  Kxe7 {[%clk 0:01:02]} 25. Re1+ {[%clk 0:00:31]}  Kd8 {[%clk 0:00:59]} 26. Qxb7 {[%clk 0:00:27]}  Bh6 {[%clk 0:00:50]} 27. Re6 {[%clk 0:00:24]}  Rc8 {[%clk 0:00:20]} 28. Qe7# {[%clk 0:00:21]} 1-0


[Site "https://www.chess.com"]

[Event "Titled Tuesday Blitz May 16 Early 2023"]
[White "Visakh N R"]
[Black "Weishaeutel, Moritz"]
[WhiteFideId "25012223"]
[BlackFideId "12967300"]
[WhiteElo "2466"]
[BlackElo "2301"]
[Result "1-0"]
[Round "04"]
[TimeControl "180+2"]
[Date "2023.05.16"]
[WhiteClock "0:00:20"]
[BlackClock "0:00:03"]

1. e4 {[%clk 0:03:00]}  c5 {[%clk 0:02:58]} 2. Nf3 {[%clk 0:03:00]}  d6 {[%clk 0:02:59]} 3. d4 {[%clk 0:03:01]}  cxd4 {[%clk 0:02:59]} 4. Nxd4 {[%clk 0:03:02]}  Nf6 {[%clk 0:03:00]} 5. Nc3 {[%clk 0:03:02]}  a6 {[%clk 0:03:01]} 6. h3 {[%clk 0:03:02]}  e6 {[%clk 0:02:56]} 7. g4 {[%clk 0:02:57]}  Be7 {[%clk 0:02:57]} 8. g5 {[%clk 0:02:55]}  Nfd7 {[%clk 0:02:57]} 9. h4 {[%clk 0:02:56]}  b5 {[%clk 0:02:57]} 10. a3 {[%clk 0:02:46]}  Bb7 {[%clk 0:02:57]} 11. f4 {[%clk 0:02:40]}  Nc6 {[%clk 0:02:57]} 12. Be3 {[%clk 0:02:39]}  O-O {[%clk 0:02:52]} 13. h5 {[%clk 0:02:38]}  Rc8 {[%clk 0:02:47]} 14. h6 {[%clk 0:02:37]}  g6 {[%clk 0:02:44]} 15. Rg1 {[%clk 0:02:18]}  Na5 {[%clk 0:02:29]} 16. Qd2 {[%clk 0:01:29]}  Nc4 {[%clk 0:02:22]} 17. Bxc4 {[%clk 0:01:28]}  Rxc4 {[%clk 0:02:23]} 18. O-O-O {[%clk 0:01:28]}  Nc5 {[%clk 0:01:42]} 19. b3 {[%clk 0:01:28]}  Rxc3 {[%clk 0:01:42]} 20. Qxc3 {[%clk 0:01:27]}  Nxe4 {[%clk 0:01:43]} 21. Qb2 {[%clk 0:01:27]}  d5 {[%clk 0:01:40]} 22. b4 {[%clk 0:00:37]}  e5 {[%clk 0:01:11]} 23. fxe5 {[%clk 0:00:33]}  Bxg5 {[%clk 0:00:38]} 24. Bxg5 {[%clk 0:00:32]}  Nxg5 {[%clk 0:00:39]} 25. e6 {[%clk 0:00:32]}  fxe6 {[%clk 0:00:33]} 26. Nf3 {[%clk 0:00:26]}  d4 {[%clk 0:00:18]} 27. Nxg5 {[%clk 0:00:25]}  Rf2 {[%clk 0:00:04]} 28. Rxd4 {[%clk 0:00:22]}  Qf6 {[%clk 0:00:04]} 29. Rd8+ {[%clk 0:00:19]}  Qxd8 {[%clk 0:00:03]} 30. Qg7# {[%clk 0:00:20]} 1-0


[Site "https://www.chess.com"]

[Event "Titled Tuesday Blitz May 16 Early 2023"]
[White "Bjerre, Jonas Buhl"]
[Black "Pacan-Milej, Kosma"]
[WhiteFideId "1444948"]
[BlackFideId "21800537"]
[WhiteElo "2525"]
[BlackElo "2302"]
[Result "0-1"]
[Round "04"]
[TimeControl "180+2"]
[Date "2023.05.16"]
[WhiteClock "0:00:11"]
[BlackClock "0:00:26"]

1. e4 {[%clk 0:03:00]}  c6 {[%clk 0:02:59]} 2. d3 {[%clk 0:02:59]}  d5 {[%clk 0:03:00]} 3. Nd2 {[%clk 0:02:58]}  g6 {[%clk 0:02:59]} 4. g3 {[%clk 0:02:58]}  Bg7 {[%clk 0:03:00]} 5. Bg2 {[%clk 0:02:59]}  Nf6 {[%clk 0:03:00]} 6. Ngf3 {[%clk 0:02:58]}  O-O {[%clk 0:03:01]} 7. O-O {[%clk 0:02:57]}  c5 {[%clk 0:02:55]} 8. exd5 {[%clk 0:02:52]}  Nxd5 {[%clk 0:02:56]} 9. Re1 {[%clk 0:02:51]}  Nc6 {[%clk 0:02:56]} 10. Nc4 {[%clk 0:02:51]}  Rb8 {[%clk 0:02:53]} 11. a4 {[%clk 0:02:50]}  b6 {[%clk 0:02:54]} 12. h4 {[%clk 0:02:28]}  Bb7 {[%clk 0:02:52]} 13. h5 {[%clk 0:02:27]}  Re8 {[%clk 0:02:48]} 14. h6 {[%clk 0:02:26]}  Bh8 {[%clk 0:02:48]} 15. Bg5 {[%clk 0:02:25]}  Qc7 {[%clk 0:02:45]} 16. c3 {[%clk 0:02:19]}  e5 {[%clk 0:02:44]} 17. Qb3 {[%clk 0:02:16]}  Qd7 {[%clk 0:02:36]} 18. Nfd2 {[%clk 0:02:11]}  Bf6 {[%clk 0:02:19]} 19. Bxf6 {[%clk 0:01:48]}  Nxf6 {[%clk 0:02:20]} 20. Ne4 {[%clk 0:01:43]}  Nxe4 {[%clk 0:02:16]} 21. dxe4 {[%clk 0:01:44]}  Qe6 {[%clk 0:02:12]} 22. Red1 {[%clk 0:01:29]}  Rbd8 {[%clk 0:02:09]} 23. Kh2 {[%clk 0:01:28]}  Ba6 {[%clk 0:02:02]} 24. Nd2 {[%clk 0:01:12]}  Qxb3 {[%clk 0:01:58]} 25. Nxb3 {[%clk 0:01:13]}  Bc4 {[%clk 0:01:55]} 26. Rxd8 {[%clk 0:00:56]}  Rxd8 {[%clk 0:01:56]} 27. Ra3 {[%clk 0:00:56]}  Bxb3 {[%clk 0:01:51]} 28. Rxb3 {[%clk 0:00:57]}  Na5 {[%clk 0:01:52]} 29. Rb5 {[%clk 0:00:53]}  Nc4 {[%clk 0:01:46]} 30. a5 {[%clk 0:00:43]}  Nxa5 {[%clk 0:01:42]} 31. b4 {[%clk 0:00:41]}  Nb7 {[%clk 0:01:29]} 32. bxc5 {[%clk 0:00:41]}  Nxc5 {[%clk 0:01:29]} 33. Rb2 {[%clk 0:00:41]}  Kf8 {[%clk 0:01:27]} 34. f3 {[%clk 0:00:40]}  Ke7 {[%clk 0:01:25]} 35. Bf1 {[%clk 0:00:40]}  Rd6 {[%clk 0:01:22]} 36. Bc4 {[%clk 0:00:39]}  g5 {[%clk 0:01:22]} 37. Kg2 {[%clk 0:00:36]}  Rxh6 {[%clk 0:01:22]} 38. Bd5 {[%clk 0:00:37]}  a5 {[%clk 0:01:21]} 39. f4 {[%clk 0:00:29]}  gxf4 {[%clk 0:01:18]} 40. gxf4 {[%clk 0:00:30]}  exf4 {[%clk 0:01:18]} 41. Kf3 {[%clk 0:00:31]}  Rh3+ {[%clk 0:01:15]} 42. Kg4 {[%clk 0:00:31]}  Rg3+ {[%clk 0:01:08]} 43. Kf5 {[%clk 0:00:29]}  Nd7 {[%clk 0:00:59]} 44. c4 {[%clk 0:00:16]}  f3 {[%clk 0:00:57]} 45. Rf2 {[%clk 0:00:15]}  a4 {[%clk 0:00:55]} 46. Kf4 {[%clk 0:00:15]}  Rh3 {[%clk 0:00:54]} 47. Kg4 {[%clk 0:00:15]}  Rh1 {[%clk 0:00:50]} 48. Kxf3 {[%clk 0:00:16]}  a3 {[%clk 0:00:49]} 49. Kg2 {[%clk 0:00:16]}  Rb1 {[%clk 0:00:48]} 50. Rxf7+ {[%clk 0:00:14]}  Kd6 {[%clk 0:00:48]} 51. e5+ {[%clk 0:00:14]}  Nxe5 {[%clk 0:00:46]} 52. Ra7 {[%clk 0:00:14]}  Rb2+ {[%clk 0:00:46]} 53. Kg3 {[%clk 0:00:15]}  a2 {[%clk 0:00:45]} 54. Kf4 {[%clk 0:00:14]}  Nd3+ {[%clk 0:00:45]} 55. Ke4 {[%clk 0:00:14]}  Nb4 {[%clk 0:00:43]} 56. Kd4 {[%clk 0:00:11]}  Rb1 {[%clk 0:00:26]} 0-1


[Site "https://www.chess.com"]

[Event "Titled Tuesday Blitz May 16 Early 2023"]
[White "Potkin, Vladimir"]
[Black "Zherebukh, Yaroslav"]
[WhiteFideId "4131061"]
[BlackFideId "14116804"]
[WhiteElo "2474"]
[BlackElo "2531"]
[Result "0-1"]
[Round "04"]
[TimeControl "180+2"]
[Date "2023.05.16"]
[WhiteClock "0:00:04"]
[BlackClock "0:00:04"]

1. Nf3 {[%clk 0:02:58]}  Nf6 {[%clk 0:02:59]} 2. c4 {[%clk 0:02:57]}  g6 {[%clk 0:02:56]} 3. Nc3 {[%clk 0:02:57]}  d5 {[%clk 0:02:56]} 4. cxd5 {[%clk 0:02:56]}  Nxd5 {[%clk 0:02:57]} 5. h4 {[%clk 0:02:55]}  Bg7 {[%clk 0:02:55]} 6. h5 {[%clk 0:02:52]}  Nxc3 {[%clk 0:02:53]} 7. bxc3 {[%clk 0:02:51]}  c5 {[%clk 0:02:53]} 8. g3 {[%clk 0:02:47]}  Nc6 {[%clk 0:02:51]} 9. Bg2 {[%clk 0:02:48]}  O-O {[%clk 0:02:24]} 10. Qa4 {[%clk 0:02:32]}  e5 {[%clk 0:02:20]} 11. Ba3 {[%clk 0:02:24]}  e4 {[%clk 0:01:38]} 12. Qxe4 {[%clk 0:02:19]}  Re8 {[%clk 0:01:38]} 13. Qf4 {[%clk 0:01:59]}  Qd3 {[%clk 0:01:37]} 14. e3 {[%clk 0:01:02]}  Re4 {[%clk 0:01:25]} 15. Qg5 {[%clk 0:00:49]}  Bf5 {[%clk 0:01:02]} 16. Bf1 {[%clk 0:00:45]}  Qd5 {[%clk 0:00:39]} 17. hxg6 {[%clk 0:00:42]}  hxg6 {[%clk 0:00:37]} 18. Be2 {[%clk 0:00:40]}  Rg4 {[%clk 0:00:33]} 19. e4 {[%clk 0:00:39]}  Rxe4 {[%clk 0:00:30]} 20. Kf1 {[%clk 0:00:22]}  Rg4 {[%clk 0:00:17]} 21. Qe3 {[%clk 0:00:21]}  b6 {[%clk 0:00:07]} 22. Re1 {[%clk 0:00:20]}  Re4 {[%clk 0:00:07]} 23. Qg5 {[%clk 0:00:19]}  Rxe2 {[%clk 0:00:06]} 24. Rxe2 {[%clk 0:00:11]}  Qxf3 {[%clk 0:00:06]} 25. Qh4 {[%clk 0:00:07]}  Bd3 {[%clk 0:00:05]} 26. Qh7+ {[%clk 0:00:06]}  Kf8 {[%clk 0:00:05]} 27. Kg1 {[%clk 0:00:06]}  Qxe2 {[%clk 0:00:04]} 28. Rh4 {[%clk 0:00:04]}  Qf1+ {[%clk 0:00:04]} 0-1


[Site "https://www.chess.com"]